fUSD/lending_fUSD_20250427
["ID","MTS","AMOUNT","RATE_DAILY","PERIOD"]
[359148671,1745742275900,-400.0,0.00019996,2]
[359148672,1745742275930,-400.0,0.00019996,2]
[359148673,1745742275960,-400.0,0.00019996,2]
[359148674,1745742275990,-400.0,0.00019996,2]
[359148675,1745742276021,-400.0,0.00019996,2]
[359148676,1745742276052,-300.0,0.00019996,2]
[359148677,1745742276084,-500.0,0.00019996,2]
[359148678,1745742276115,-500.0,0.00019996,2]
[359148679,1745742276146,-400.0,0.00019997,2]
[359148680,1745742276176,-416.59,0.00019997,2]
[359148681,1745742276208,-400.0,0.00019997,2]
[359148682,1745742276239,-400.0,0.00019997,2]
[359148683,1745742276269,-400.0,0.00019997,2]
[359148684,1745742276299,-458.5,0.00019997,2]
[359148685,1745742276330,-489.23253532,0.00019997,2]
[359148686,1745742276362,-400.0,0.00019997,2]
[359148687,1745742276393,-504.73,0.00019997,2]
[359148688,1745742276424,-9182.46,0.00019997,2]
[359148689,1745742276458,-400.0,0.00019997,2]
[359148690,1745742276497,-400.0,0.00019997,2]
[359148691,1745742276539,-428.86,0.00019997,2]
[359148692,1745742276572,-400.0,0.00019997,2]
[359148693,1745742276608,-400.0,0.00019997,2]
[359148694,1745742276648,-400.0,0.00019997,2]
[359148695,1745742276686,-400.0,0.00019997,2]
[359148696,1745742276723,-400.0,0.00019997,2]
[359148697,1745742276760,-400.0,0.00019997,2]
[359148698,1745742276794,-64980.25,0.00019997,2]
[359148699,1745742276830,-400.0,0.00019997,2]
[359148700,1745742276863,-300.0,0.00019997,2]
[359148701,1745742277428,-500.0,0.00019997,2]
[359148702,1745742277460,-500.0,0.00019997,2]
[359148703,1745742277493,-400.0,0.00019997,2]
[359148704,1745742277524,-400.0,0.00019997,2]
[359148705,1745742277555,-458.69,0.00019997,2]
[359148706,1745742277586,-400.0,0.00019997,2]
[359148707,1745742277618,-6735.66,0.00019997,2]
[359148708,1745742277649,-400.0,0.00019997,2]
[359148709,1745742277681,-400.0,0.00019997,2]
[359148710,1745742277712,-400.0,0.00019997,2]
[359148711,1745742277742,-3396.61,0.00019997,2]
[359148712,1745742277773,-1240.93,0.00019997,2]
[359148713,1745742277803,-639.4,0.00019997,2]
[359148714,1745742277834,-400.0,0.00019997,2]
[359148715,1745742277866,-177.83053756,0.00019997,2]
[359148716,1745742277897,-400.0,0.00019997,2]
[359148717,1745742277929,-595.13,0.00019997,2]
[359148718,1745742277959,-400.0,0.00019997,2]
[359148719,1745742277989,-400.0,0.00019997,2]
[359148720,1745742278020,-400.0,0.00019997,2]
[359148721,1745742278050,-400.0,0.00019997,2]
[359148722,1745742278079,-400.0,0.00019997,2]
[359148723,1745742278112,-174.55222346,0.00019997,2]
[359148724,1745742278143,-400.0,0.00019997,2]
[359148725,1745742278175,-568.88,0.00019997,2]
[359148726,1745742278207,-448.95,0.00019997,2]
[359148727,1745742278237,-449.7,0.00019997,2]
[359148728,1745742278268,-400.0,0.00019997,2]
[359148729,1745742278300,-400.0,0.00019997,2]
[359148730,1745742278330,-400.0,0.00019997,2]
[359148731,1745742278359,-400.0,0.00019997,2]
[359148732,1745742278390,-400.0,0.00019997,2]
[359148733,1745742278418,-400.0,0.00019997,2]
[359148734,1745742278452,-486.17,0.00019997,2]
[359148735,1745742278483,-400.0,0.00019997,2]
[359148736,1745742278513,-410.5,0.00019997,2]
[359148737,1745742278543,-400.0,0.00019997,2]
[359148738,1745742278574,-400.0,0.00019997,2]
[359148739,1745742278603,-400.0,0.00019997,2]
[359148740,1745742278634,-400.0,0.00019997,2]
[359148741,1745742278664,-68218.24,0.00019997,2]
[359148742,1745742278696,-400.0,0.00019997,2]
[359148743,1745742278727,-450.96,0.00019997,2]
[359148744,1745742278757,-400.0,0.00019997,2]
[359148745,1745742278788,-400.0,0.00019997,2]
[359148746,1745742278818,-400.0,0.00019997,2]
[359148747,1745742278977,-400.0,0.00019997,2]
[359148748,1745742279011,-400.0,0.00019997,2]
[359148749,1745742279042,-400.0,0.00019997,2]
[359148750,1745742279075,-400.0,0.00019997,2]
[359148751,1745742279110,-400.0,0.00019997,2]
[359148752,1745742279142,-400.0,0.00019997,2]
[359148753,1745742279174,-400.0,0.00019997,2]
[359148754,1745742279207,-400.0,0.00019997,2]
[359148755,1745742279238,-400.0,0.00019997,2]
[359148756,1745742279271,-400.0,0.00019997,2]
[359148757,1745742279302,-1398.36,0.00019997,2]
[359148758,1745742279333,-400.0,0.00019997,2]
[359148759,1745742279364,-400.0,0.00019997,2]
[359148760,1745742279395,-400.0,0.00019997,2]
[359148761,1745742279426,-400.0,0.00019997,2]
[359148762,1745742279457,-400.0,0.00019997,2]
[359148763,1745742279488,-483.33,0.00019997,2]
[359148764,1745742279519,-400.0,0.00019997,2]
[359148765,1745742279549,-400.0,0.00019997,2]
[359148766,1745742279580,-400.0,0.00019997,2]
[359148767,1745742279612,-400.0,0.00019997,2]
[359148768,1745742279644,-400.0,0.00019997,2]
[359148769,1745742279685,-677.76,0.00019997,2]
[359148770,1745742279720,-25.77969528,0.00019997,2]
[359148771,1745742310874,-300.0,0.00019721,2]
[359148772,1745742310904,-1200.0,0.00019721,2]
[359148773,1745742310932,-400.0,0.00019722,2]
[359148774,1745742310959,-400.0,0.00019722,2]
[359148775,1745742311214,-400.0,0.00019722,2]
[359148776,1745742311244,-400.0,0.00019722,2]
[359148777,1745742311274,-400.0,0.00019722,2]
[359148778,1745742311304,-400.0,0.00019722,2]
[359148779,1745742311332,-400.0,0.00019722,2]
[359148780,1745742311360,-400.0,0.00019722,2]
[359148781,1745742311388,-510.28315277,0.00019722,2]
[359148782,1745742311416,-400.0,0.00019722,2]
[359148783,1745742311443,-400.0,0.00019722,2]
[359148784,1745742311472,-400.0,0.00019722,2]
[359148785,1745742311507,-400.0,0.00019722,2]
[359148786,1745742311550,-400.0,0.00019722,2]
[359148787,1745742311582,-400.0,0.00019722,2]
[359148788,1745742311614,-400.0,0.00019722,2]
[359148789,1745742311659,-534.48,0.00019723,2]
[359148790,1745742311686,-499.54,0.00019723,2]
[359148791,1745742311713,-400.0,0.00019723,2]
[359148792,1745742311741,-412.5625911,0.00019723,2]
[359148793,1745742311768,-400.0,0.00019723,2]
[359148794,1745742311797,-420.47,0.00019723,2]
[359148795,1745742311825,-541.08,0.00019723,2]
[359148796,1745742311852,-400.0,0.00019723,2]
[359148797,1745742311880,-429.49075396,0.00019723,2]
[359148798,1745742311908,-400.0,0.00019723,2]
[359148799,1745742311937,-2061.14,0.00019723,2]
[359148800,1745742311964,-400.0,0.00019723,2]
[359148801,1745742311991,-404.62,0.00019723,2]
[359148802,1745742312019,-400.0,0.00019723,2]
[359148803,1745742312046,-400.0,0.00019723,2]
[359148804,1745742312074,-400.0,0.00019723,2]
[359148805,1745742312102,-407.21754173,0.00019723,2]
[359148806,1745742312133,-400.0,0.00019724,2]
[359148807,1745742312163,-400.0,0.00019724,2]
[359148808,1745742312193,-400.0,0.00019724,2]
[359148809,1745742312222,-429.54,0.00019724,2]
[359148810,1745742312251,-400.0,0.00019724,2]
[359148811,1745742312281,-526.16,0.00019724,2]
[359148812,1745742312308,-400.0,0.00019724,2]
[359148813,1745742312337,-872.0,0.00019895,2]
[359148814,1745742312365,-500.0,0.00019973,2]
[359148815,1745742312393,-500.0,0.00019973,2]
[359148816,1745742312421,-390.06972059,0.00019973,2]
[359148817,1745742312450,-400.0,0.00019984,2]
[359148818,1745742312480,-400.0,0.00019984,2]
[359148819,1745742312509,-400.0,0.00019984,2]
[359148820,1745742312537,-400.0,0.00019984,2]
[359148821,1745742312564,-400.0,0.00019984,2]
[359148822,1745742312593,-400.0,0.00019984,2]
[359148823,1745742312624,-400.0,0.00019984,2]
[359148824,1745742312658,-400.0,0.00019984,2]
[359148825,1745742312705,-926.6921826,0.00019986,2]
[359148826,1745742312755,-270.6299752,0.00019986,2]
[359148827,1745742312796,-400.0,0.00019996,2]
[359148828,1745742312828,-446.08707999,0.00019996,2]
[359148829,1745742312863,-453.71706734,0.00019996,2]
[359148830,1745742312891,-166.95993499,0.00019996,2]
[359148831,1745742312923,-400.0,0.00019996,2]
[359148832,1745742312952,-400.0,0.00019996,2]
[359148833,1745742312982,-400.0,0.00019996,2]
[359148834,1745742313012,-400.0,0.00019996,2]
[359148835,1745742313042,-400.0,0.00019996,2]
[359148836,1745742313070,-400.0,0.00019996,2]
[359148837,1745742313099,-400.0,0.00019996,2]
[359148838,1745742313130,-400.0,0.00019996,2]
[359148839,1745742313160,-400.0,0.00019996,2]
[359148840,1745742313200,-400.0,0.00019996,2]
[359148841,1745742313256,-400.0,0.00019996,2]
[359148842,1745742313297,-484.70030472,0.00019997,2]
[359148843,1745742313326,-400.0,0.00019997,2]
[359148844,1745742313367,-400.0,0.00019997,2]
[359148845,1745742313400,-429.38,0.00019997,2]
[359148846,1745742313427,-400.0,0.00019997,2]
[359148847,1745742313455,-2227.7,0.00019997,2]
[359148848,1745742313482,-534.48,0.00019997,2]
[359148849,1745742313509,-499.54,0.00019997,2]
[359148850,1745742313537,-420.47,0.00019997,2]
[359148851,1745742313564,-541.08,0.00019997,2]
[359148852,1745742313590,-400.0,0.00019997,2]
[359148853,1745742313617,-400.0,0.00019997,2]
[359148854,1745742313645,-2061.14,0.00019997,2]
[359148855,1745742313671,-404.62,0.00019997,2]
[359148856,1745742313710,-400.0,0.00019997,2]
[359148857,1745742313754,-400.0,0.00019997,2]
[359148858,1745742313791,-400.0,0.00019997,2]
[359148859,1745742313817,-200.0,0.00019997,2]
[359148860,1745742313844,-400.0,0.00019998,2]
[359148861,1745742313871,-424.02,0.00019998,2]
[359148862,1745742313898,-400.0,0.00019998,2]
[359148863,1745742313927,-400.0,0.00019998,2]
[359148864,1745742313956,-419.08,0.00019998,2]
[359148865,1745742313985,-400.0,0.00019998,2]
[359148866,1745742314012,-400.0,0.00019998,2]
[359148867,1745742314041,-400.0,0.00019998,2]
[359148868,1745742314068,-400.0,0.00019998,2]
[359148869,1745742314097,-400.0,0.00019998,2]
[359148870,1745742314127,-400.0,0.00019998,2]
[359148871,1745742314157,-400.0,0.00019998,2]
[359148872,1745742314187,-449.43,0.00019998,2]
[359148873,1745742314214,-1339.32,0.00019998,2]
[359148874,1745742314243,-300.0,0.00019998,2]
[359148875,1745742314271,-500.0,0.00019998,2]
[359148876,1745742314299,-500.0,0.00019998,2]
[359148877,1745742314327,-400.0,0.00019998,2]
[359148878,1745742314356,-494.82,0.00019998,2]
[359148879,1745742314385,-400.0,0.00019998,2]
[359148880,1745742314413,-536.51,0.00019998,2]
[359148881,1745742314441,-400.0,0.00019998,2]
[359148882,1745742314470,-400.0,0.00019998,2]
[359148883,1745742314499,-427.49,0.00019998,2]
[359148884,1745742314527,-400.0,0.00019998,2]
[359148885,1745742314556,-400.0,0.00019998,2]
[359148886,1745742314584,-400.0,0.00019998,2]
[359148887,1745742314610,-475.21560254,0.00019998,2]
[359148888,1745742314638,-400.0,0.00019998,2]
[359148889,1745742314665,-428.48,0.00019998,2]
[359148890,1745742314693,-400.0,0.00019998,2]
[359148891,1745742314720,-400.0,0.00019998,2]
[359148892,1745742314747,-400.0,0.00019998,2]
[359148893,1745742314775,-400.0,0.00019998,2]
[359148894,1745742314803,-400.0,0.00019998,2]
[359148895,1745742314832,-533.38,0.00019998,2]
[359148896,1745742314860,-456.14,0.00019998,2]
[359148897,1745742314888,-400.0,0.00019998,2]
[359148898,1745742314917,-485.71,0.00019998,2]
[359148899,1745742314944,-400.0,0.00019998,2]
[359148900,1745742314972,-400.0,0.00019998,2]
[359148901,1745742314999,-400.0,0.00019998,2]
[359148902,1745742315205,-400.0,0.00019998,2]
[359148903,1745742315236,-400.0,0.00019998,2]
[359148904,1745742315265,-400.0,0.00019998,2]
[359148905,1745742315297,-667.6,0.00019998,2]
[359148906,1745742315325,-2332.79,0.00019998,2]
[359148907,1745742315354,-582.24,0.00019998,2]
[359148908,1745742315384,-400.0,0.00019998,2]
[359148909,1745742315413,-400.0,0.00019998,2]
[359148910,1745742315441,-400.0,0.00019998,2]
[359148911,1745742315469,-400.0,0.00019998,2]
[359148912,1745742315496,-429.54,0.00019998,2]
[359148913,1745742315524,-400.0,0.00019998,2]
[359148914,1745742315551,-526.16,0.00019998,2]
[359148915,1745742315578,-400.0,0.00019998,2]
[359148916,1745742315606,-500.0,0.00019999,2]
[359148917,1745742315633,-500.0,0.00019999,2]
[359148918,1745742315660,-400.0,0.00019999,2]
[359148919,1745742315688,-400.0,0.00019999,2]
[359148920,1745742315715,-500.81539202,0.00019999,2]
[359148921,1745742315742,-1000.0,0.00019999,2]
[359148922,1745742315770,-1000.0,0.00019999,2]
[359148923,1745742315797,-1000.0,0.00019999,2]
[359148924,1745742315826,-1000.0,0.00019999,2]
[359148925,1745742315854,-1000.0,0.00019999,2]
[359148926,1745742315880,-1116.0229,0.00019999,2]
[359148927,1745742315910,-198986.97005782,0.0002,2]
[359148928,1745742328330,-300.0,0.00019721,2]
[359148929,1745742328340,-434.31,0.00019723,2]
[359148930,1745742328349,-400.0,0.00019723,2]
[359148931,1745742328359,-877.0,0.00019895,2]
[359148932,1745742328368,-500.0,0.00019973,2]
[359148933,1745742328378,-434.31,0.00019997,2]
[359148934,1745742328388,-104443.75690696,0.0002,2]
[359148937,1745742416180,-300.0,0.00019721,2]
[359148938,1745742416208,-400.0,0.00019722,2]
[359148939,1745742416236,-400.0,0.00019722,2]
[359148940,1745742416266,-318.97297723,0.00019722,2]
[359148941,1745742416294,-400.0,0.00019722,2]
[359148942,1745742416323,-400.0,0.00019722,2]
[359148943,1745742416351,-400.0,0.00019722,2]
[359148944,1745742416639,-400.0,0.00019722,2]
[359148945,1745742416671,-400.0,0.00019722,2]
[359148946,1745742416703,-545.54,0.00019722,2]
[359148947,1745742416731,-400.0,0.00019722,2]
[359148948,1745742416759,-400.0,0.00019722,2]
[359148949,1745742416787,-400.0,0.00019722,2]
[359148950,1745742416818,-400.0,0.00019722,2]
[359148951,1745742416847,-400.0,0.00019722,2]
[359148952,1745742416875,-400.0,0.00019722,2]
[359148953,1745742416903,-400.0,0.00019722,2]
[359148954,1745742416931,-400.0,0.00019722,2]
[359148955,1745742416959,-405.38000893,0.00019722,2]
[359148956,1745742416987,-845.16,0.00019722,2]
[359148957,1745742417015,-400.0,0.00019722,2]
[359148958,1745742417050,-400.0,0.00019722,2]
[359148959,1745742417080,-400.0,0.00019722,2]
[359148960,1745742417110,-400.0,0.00019722,2]
[359148961,1745742417138,-400.0,0.00019722,2]
[359148962,1745742417172,-400.0,0.00019722,2]
[359148963,1745742417206,-400.0,0.00019722,2]
[359148964,1745742417236,-400.0,0.00019722,2]
[359148965,1745742417266,-62533.38,0.00019722,2]
[359148966,1745742417295,-400.0,0.00019722,2]
[359148967,1745742417327,-400.0,0.00019722,2]
[359148968,1745742417358,-400.0,0.00019722,2]
[359148969,1745742417391,-400.0,0.00019722,2]
[359148970,1745742417420,-400.0,0.00019722,2]
[359148971,1745742417449,-200.0,0.00019723,2]
[359148972,1745742417478,-406.42264805,0.00019723,2]
[359148973,1745742417507,-415.84,0.00019723,2]
[359148974,1745742417535,-511.31654874,0.00019723,2]
[359148975,1745742417565,-400.0,0.00019723,2]
[359148976,1745742417593,-400.0,0.00019723,2]
[359148977,1745742417623,-59565.23,0.00019723,2]
[359148978,1745742417652,-400.0,0.00019723,2]
[359148979,1745742417680,-400.0,0.00019723,2]
[359148980,1745742417708,-6174.36,0.00019723,2]
[359148981,1745742417737,-400.0,0.00019723,2]
[359148982,1745742417766,-400.0,0.00019723,2]
[359148983,1745742417795,-400.0,0.00019723,2]
[359148984,1745742417826,-3113.56,0.00019723,2]
[359148985,1745742417855,-412.33356124,0.00019723,2]
[359148986,1745742417884,-400.0,0.00019723,2]
[359148987,1745742417912,-430.81,0.00019723,2]
[359148988,1745742417941,-420.7,0.00019723,2]
[359148989,1745742417970,-400.0,0.00019723,2]
[359148990,1745742417998,-1137.52,0.00019723,2]
[359148991,1745742418027,-400.0,0.00019723,2]
[359148992,1745742418056,-400.0,0.00019723,2]
[359148993,1745742418085,-400.0,0.00019723,2]
[359148994,1745742418114,-356.9463926,0.00019723,2]
[359148995,1745742418143,-400.0,0.00019723,2]
[359148996,1745742418174,-400.0,0.00019723,2]
[359148997,1745742418202,-558.73,0.00019723,2]
[359148998,1745742418231,-412.27,0.00019723,2]
[359148999,1745742418258,-400.0,0.00019723,2]
[359149000,1745742418287,-400.0,0.00019723,2]
[359149001,1745742418315,-400.0,0.00019723,2]
[359149002,1745742418344,-400.0,0.00019723,2]
[359149003,1745742418373,-400.0,0.00019723,2]
[359149004,1745742418401,-400.0,0.00019723,2]
[359149005,1745742418428,-400.0,0.00019723,2]
[359149006,1745742418457,-400.0,0.00019723,2]
[359149007,1745742418484,-400.0,0.00019723,2]
[359149008,1745742418512,-400.0,0.00019723,2]
[359149009,1745742418540,-400.0,0.00019724,2]
[359149010,1745742418569,-400.0,0.00019724,2]
[359149011,1745742418598,-1085.476927,0.00019792,2]
[359149012,1745742418627,-1085.476927,0.00019793,2]
[359149013,1745742418656,-1085.476927,0.00019795,2]
[359149014,1745742418685,-1085.476927,0.00019797,2]
[359149015,1745742418715,-1085.476927,0.00019798,2]
[359149016,1745742418743,-231.382424,0.00019799,2]
[359149017,1745742418770,-500.0,0.00019873,2]
[359149018,1745742418798,-1000.0,0.00019873,2]
[359149019,1745742418827,-447.05868444,0.00019897,2]
[359149020,1745742418857,-447.05868443,0.00019897,2]
[359149021,1745742418886,-447.05868443,0.00019898,2]
[359149022,1745742418916,-447.05868443,0.00019898,2]
[359149023,1745742418945,-447.05868443,0.00019898,2]
[359149024,1745742418974,-447.05868443,0.00019899,2]
[359149025,1745742419001,-4983.09173191,0.000199,2]
[359149026,1745742419028,-2290.52552765,0.00019919,2]
[359149027,1745742419057,-1085.476927,0.0001997,2]
[359149028,1745742419087,-1085.476927,0.00019971,2]
[359149029,1745742419115,-500.0,0.00019973,2]
[359149030,1745742419144,-400.0,0.00019984,2]
[359149031,1745742419177,-400.0,0.00019984,2]
[359149032,1745742419209,-1057.14,0.00019984,2]
[359149033,1745742419237,-400.0,0.00019984,2]
[359149034,1745742419266,-446.37,0.00019984,2]
[359149035,1745742419294,-400.0,0.00019984,2]
[359149036,1745742419323,-400.0,0.00019984,2]
[359149037,1745742419350,-400.0,0.00019984,2]
[359149038,1745742419377,-400.0,0.00019984,2]
[359149039,1745742419405,-400.0,0.00019984,2]
[359149040,1745742419437,-1399.5,0.00019984,2]
[359149041,1745742419465,-400.0,0.00019984,2]
[359149042,1745742419494,-400.0,0.00019984,2]
[359149043,1745742419520,-400.0,0.00019984,2]
[359149044,1745742419551,-400.0,0.00019984,2]
[359149045,1745742419579,-1085.476927,0.00019985,2]
[359149046,1745742422858,-57.64,0.00019722,2]
[359149047,1745742422871,-342.36,0.00019722,2]
[359149048,1745742422881,-447.05868443,0.00019899,2]
[359149049,1745742422890,-20733.28262969,0.00019986,2]
[359149050,1745742425436,250.0,0.00017,2]
[359149051,1745742426530,300.0,0.00019,2]
[359149052,1745742453479,-400.0,0.00019722,2]
[359149053,1745742453514,-400.0,0.00019722,2]
[359149054,1745742453548,-400.0,0.00019722,2]
[359149055,1745742453582,-482.65,0.00019722,2]
[359149056,1745742453616,-400.0,0.00019722,2]
[359149057,1745742453647,-400.0,0.00019722,2]
[359149058,1745742453679,-400.0,0.00019722,2]
[359149059,1745742453711,-400.0,0.00019722,2]
[359149060,1745742453746,-400.0,0.00019722,2]
[359149061,1745742453778,-400.0,0.00019722,2]
[359149062,1745742453810,-400.0,0.00019722,2]
[359149063,1745742453843,-400.0,0.00019722,2]
[359149064,1745742453875,-400.0,0.00019722,2]
[359149065,1745742453905,-400.0,0.00019722,2]
[359149066,1745742453935,-400.0,0.00019723,2]
[359149067,1745742453966,-400.0,0.00019723,2]
[359149068,1745742453998,-400.0,0.00019723,2]
[359149069,1745742454029,-440.65837346,0.00019723,2]
[359149070,1745742454064,-400.0,0.00019723,2]
[359149071,1745742454097,-409.13,0.00019723,2]
[359149072,1745742454130,-400.0,0.00019723,2]
[359149073,1745742454161,-400.0,0.00019723,2]
[359149074,1745742454196,-400.0,0.00019723,2]
[359149075,1745742454227,-513.91004181,0.00019723,2]
[359149076,1745742454259,-511.91700848,0.00019723,2]
[359149077,1745742454291,-447.05868443,0.00019899,2]
[359149078,1745742454322,-447.05868443,0.000199,2]
[359149079,1745742454351,-3752.2799,0.000199,2]
[359149080,1745742454386,-447.05868443,0.000199,2]
[359149081,1745742454418,-400.0,0.00019984,2]
[359149082,1745742454451,-535.66911424,0.00019984,2]
[359149083,1745742454482,-400.0,0.00019984,2]
[359149084,1745742454512,-400.0,0.00019984,2]
[359149085,1745742454541,-400.0,0.00019984,2]
[359149086,1745742454571,-2562.01116521,0.00019986,2]
[359149087,1745742454602,-207.4,0.00019988,2]
[359149088,1745742454630,-43112.42295211,0.00019996,2]
[359149089,1745742454659,-467.63183938,0.00019996,2]
[359149090,1745742454687,-400.0,0.00019996,2]
[359149091,1745742454715,-400.0,0.00019996,2]
[359149092,1745742454745,-400.0,0.00019996,2]
[359149093,1745742454775,-400.0,0.00019996,2]
[359149094,1745742454803,-401.56956186,0.00019996,2]
[359149095,1745742454830,-400.0,0.00019996,2]
[359149096,1745742454860,-545.54,0.00019996,2]
[359149097,1745742454886,-400.0,0.00019996,2]
[359149098,1745742454913,-400.0,0.00019996,2]
[359149099,1745742454941,-400.0,0.00019996,2]
[359149100,1745742454969,-400.0,0.00019996,2]
[359149101,1745742455008,-400.0,0.00019996,2]
[359149102,1745742455036,-400.0,0.00019996,2]
[359149103,1745742455065,-414.90517816,0.00019996,2]
[359149104,1745742455094,-400.0,0.00019996,2]
[359149105,1745742455123,-845.16,0.00019996,2]
[359149106,1745742455151,-322.39208278,0.00019996,2]
[359149107,1745742455184,-400.0,0.00019996,2]
[359149108,1745742455213,-400.0,0.00019996,2]
[359149109,1745742455254,-400.0,0.00019996,2]
[359149110,1745742455301,-400.0,0.00019996,2]
[359149111,1745742455337,-400.0,0.00019996,2]
[359149112,1745742455377,-400.0,0.00019996,2]
[359149113,1745742455413,-400.0,0.00019996,2]
[359149114,1745742457068,-400.0,0.00019723,2]
[359149115,1745742457079,-51467.15345844,0.00019996,2]
[359149116,1745742472291,-66000.0,0.000196,2]
[359149117,1745742487179,-1000.0,0.000196,2]
[359149127,1745742550962,-300.0,0.00019599,2]
[359149128,1745742551308,-147414.35817842,0.000196,2]
[359149129,1745742551344,-177805.93364316,0.000196,2]
[359149130,1745742583446,-250.0,0.00019661,2]
[359149131,1745742583474,-200.0,0.00019661,2]
[359149132,1745742583722,-400.0,0.00019722,2]
[359149133,1745742583750,-400.0,0.00019722,2]
[359149134,1745742583778,-400.0,0.00019722,2]
[359149135,1745742583805,-400.0,0.00019722,2]
[359149136,1745742583832,-443.06,0.00019722,2]
[359149137,1745742583860,-1281.83,0.00019722,2]
[359149138,1745742583887,-400.0,0.00019722,2]
[359149139,1745742583914,-400.0,0.00019722,2]
[359149140,1745742583941,-400.0,0.00019722,2]
[359149141,1745742583969,-400.0,0.00019722,2]
[359149142,1745742583996,-621.28,0.00019722,2]
[359149143,1745742584027,-400.0,0.00019722,2]
[359149144,1745742584057,-400.0,0.00019722,2]
[359149145,1745742584084,-427.55,0.00019722,2]
[359149146,1745742584111,-400.0,0.00019722,2]
[359149147,1745742584138,-440.93,0.00019722,2]
[359149148,1745742584164,-400.0,0.00019722,2]
[359149149,1745742584191,-400.0,0.00019722,2]
[359149150,1745742584219,-400.0,0.00019722,2]
[359149151,1745742584246,-489.94,0.00019722,2]
[359149152,1745742584275,-2042.06,0.00019722,2]
[359149153,1745742584304,-400.0,0.00019722,2]
[359149154,1745742584331,-457.91,0.00019722,2]
[359149155,1745742584360,-400.0,0.00019722,2]
[359149156,1745742584388,-462.67,0.00019722,2]
[359149157,1745742584415,-859.03,0.00019722,2]
[359149158,1745742584442,-400.0,0.00019722,2]
[359149159,1745742584470,-400.0,0.00019722,2]
[359149160,1745742584497,-1889.38,0.00019722,2]
[359149161,1745742584524,-400.0,0.00019722,2]
[359149162,1745742584552,-400.0,0.00019722,2]
[359149163,1745742584583,-400.0,0.00019722,2]
[359149164,1745742584610,-400.0,0.00019722,2]
[359149165,1745742584638,-400.0,0.00019722,2]
[359149166,1745742584664,-400.0,0.00019722,2]
[359149167,1745742584692,-8417.26,0.00019722,2]
[359149168,1745742584719,-400.0,0.00019722,2]
[359149169,1745742584746,-400.0,0.00019722,2]
[359149170,1745742584773,-400.0,0.00019722,2]
[359149171,1745742584804,-400.0,0.00019722,2]
[359149172,1745742584832,-400.0,0.00019722,2]
[359149173,1745742584859,-400.0,0.00019722,2]
[359149174,1745742584887,-400.0,0.00019722,2]
[359149175,1745742584915,-400.0,0.00019722,2]
[359149176,1745742584943,-400.0,0.00019722,2]
[359149177,1745742584973,-400.0,0.00019722,2]
[359149178,1745742585001,-400.0,0.00019722,2]
[359149179,1745742585029,-400.0,0.00019722,2]
[359149180,1745742585058,-27550.85,0.00019722,2]
[359149181,1745742586169,-29532.5,0.00019722,2]